bitfinex/quotes_ETHUSD_20250909
["timestamp","ask_amount","ask_price","bid_price","bid_amount"]
[1757425214606,0.001,4348.3,4348.2,44.9082011]
[1757425214806,0.001,4348.3,4348.2,48.9202011]
[1757425215144,0.001,4348.3,4348.2,50.55337198]
[1757425215345,0.001,4348.3,4348.2,48.9202011]
[1757425215649,0.001,4348.3,4348.2,48.9192011]
[1757425217048,0.001,4348.3,4348.2,50.3002011]
[1757425217245,0.001,4348.3,4348.2,48.9192011]
[1757425217928,0.001,4348.3,4348.2,44.9082011]
[1757425218132,0.001,4348.3,4348.2,46.7325011]
[1757425218334,0.001,4348.3,4348.2,43.7325011]
[1757425218524,0.001,4348.3,4348.2,46.7325011]
[1757425218720,0.001,4348.3,4348.2,38.5716]
[1757425219052,2.128,4348.3,4348.2,41.822]
[1757425219224,0.001,4348.3,4348.2,41.822]
[1757425219411,0.001,4348.3,4348.2,42.1201]
[1757425219748,0.001,4348.3,4348.2,46.2700011]
[1757425219920,0.001,4348.3,4348.2,45.5826]
[1757425220121,0.001,4348.3,4348.2,46.7325011]
[1757425220328,0.001,4348.3,4348.2,43.2700011]
[1757425220523,0.001,4348.3,4348.2,46.7325011]
[1757425220849,0.001,4348.3,4348.2,49.49770672]
[1757425221556,0.001,4348.3,4348.2,49.72750672]
[1757425221727,0.001,4348.3,4348.2,49.45023494]
[1757425222259,0.001,4348.3,4348.2,46.9613011]
[1757425222420,0.001,4348.3,4348.2,45.8114]
[1757425222625,0.001,4348.3,4348.2,46.9613011]
[1757425223121,0.001,4348.3,4348.2,42.9513011]
[1757425223355,0.001,4348.3,4348.2,46.2007011]
[1757425223557,0.001,4348.3,4348.2,44.9354]
[1757425224047,0.001,4348.3,4348.2,46.3834011]
[1757425224621,0.001,4348.3,4348.2,46.8459011]
[1757425224847,0.001,4348.3,4348.2,49.56363494]
[1757425225246,0.001,4348.3,4348.2,47.37693494]
[1757425225441,0.001,4348.3,4348.2,47.0757011]
[1757425225679,0.001,4348.3,4348.2,46.01772348]
[1757425226056,0.001,4348.3,4348.2,42.3051011]
[1757425226260,0.001,4348.3,4348.2,46.3151011]
[1757425226561,0.001,4348.3,4348.2,42.6032011]
[1757425226730,0.001,4348.3,4348.2,41.4533]
[1757425226926,0.001,4348.3,4348.2,45.1652]
[1757425227128,0.001,4348.3,4348.2,46.3151011]
[1757425227429,2.128,4348.3,4348.2,45.1652]
[1757425227623,0.001,4348.3,4348.2,45.1652]
[1757425227927,0.001,4348.3,4348.2,46.3151011]
[1757425228137,2.5764,4348.3,4348.2,37.9254]
[1757425228361,5.13388932,4348.3,4348.2,5.515]
[1757425228526,5.13388932,4348.3,4348.2,9.525]
[1757425228527,2.38574,4348.3,4348.2,9.525]
[1757425228860,2.128,4348.3,4348.2,42.525]
[1757425229059,0.0002,4348.3,4348.2,43.9730011]
[1757425229366,2.5756,4348.3,4348.2,11.289]
[1757425229584,2.5756,4348.3,4348.2,14.289]
[1757425230249,4.87534932,4348.3,4348.2,10.279]
[1757425230450,6.38494971,4348.3,4348.2,7.279]
[1757425230877,6.38494971,4348.3,4348.2,11.289]
[1757425231071,6.38494971,4348.3,4348.2,14.289]
[1757425231587,6.38494971,4348.3,4348.2,11.289]
[1757425231805,5.54744971,4348.3,4348.2,11.289]
[1757425232401,2.30064852,4348.5,4348.3,33.0]
[1757425232402,0.001,4348.5,4348.3,33.0]
[1757425232609,0.001,4348.5,4348.4,37.01]
[1757425232772,0.001,4348.5,4348.4,7.01]
[1757425233099,2.5424,4348.5,4348.4,7.01]
[1757425233256,0.001,4348.5,4348.4,7.01]
[1757425233455,0.001,4348.5,4348.4,37.01]
[1757425233656,0.001,4348.5,4348.4,37.3104]
[1757425233851,0.001,4348.5,4348.4,37.01]
[1757425234658,4.53214355,4348.5,4348.4,3.0]
[1757425234893,3.27336865,4348.5,4348.4,7.01]
[1757425235110,4.88734355,4348.5,4348.4,3.0]
[1757425235258,4.88734355,4348.5,4348.4,7.01]
[1757425235459,2.2325,4348.5,4348.4,7.01]
[1757425235682,0.001,4348.5,4348.4,7.01]
[1757425235957,2.5877,4348.5,4348.4,3.0]
[1757425236177,2.72722474,4348.5,4348.4,7.01]
[1757425236383,0.0081,4348.5,4348.4,7.01]
[1757425236566,0.001,4348.5,4348.4,37.7655]
[1757425236962,0.001,4348.5,4348.4,38.91534822]
[1757425237170,0.001,4348.5,4348.4,41.51258206]
[1757425237472,0.001,4348.5,4348.4,45.24865294]
[1757425237874,0.001,4348.5,4348.4,43.61548206]
[1757425238210,0.001,4348.5,4348.4,41.70670977]
[1757425238416,0.001,4348.5,4348.4,41.21134822]
[1757425238716,0.001,4348.5,4348.4,40.0615]
[1757425238999,0.001,4348.5,4348.4,41.21134822]
[1757425239204,0.001,4348.5,4348.4,41.32574822]
[1757425239364,0.001,4348.5,4348.4,43.42864822]
[1757425240065,0.00017819,4348.5,4348.4,43.89275384]
[1757425240696,0.00017819,4348.5,4348.4,44.40748206]
[1757425241718,0.00017819,4348.5,4348.4,45.36880838]
[1757425242417,0.00017819,4348.5,4348.4,44.40748206]
[1757425242618,0.00017819,4348.5,4348.4,44.68475384]
[1757425242820,0.04,4348.9,4348.4,44.68475384]
[1757425242821,0.04,4348.9,4348.8,1.14974245]
[1757425243122,0.04,4348.9,4348.8,38.48397113]
[1757425243319,0.04,4348.9,4348.8,41.31937629]
[1757425244424,0.04,4348.9,4348.8,43.37172828]
[1757425245131,0.04,4348.9,4348.8,43.54684417]
[1757425245337,1e-08,4348.9,4348.8,42.28649218]
[1757425245628,49.36435625,4349.4,4349.3,1.14961028]
[1757425245828,20.25474439,4349.4,4349.3,45.86801028]
[1757425246127,15.91618083,4349.4,4349.3,46.4465159]
[1757425246431,15.91618083,4349.4,4349.3,49.31306635]
[1757425247131,15.91618083,4349.4,4349.3,45.30406635]
[1757425247428,15.91618083,4349.4,4349.3,49.03579457]
[1757425247624,15.91618083,4349.4,4349.3,42.16024412]
[1757425247831,15.91618083,4349.4,4349.3,46.16924412]
[1757425249032,15.91618083,4349.4,4349.3,41.85901028]
[1757425249195,15.91618083,4349.4,4349.3,45.86701028]
[1757425249395,15.91618083,4349.4,4349.3,46.16824412]
[1757425249829,15.91618083,4349.4,4349.3,42.16024412]
[1757425249999,15.91618083,4349.4,4349.3,46.28264412]
[1757425250196,15.91618083,4349.4,4349.3,44.17974412]
[1757425250536,15.91618083,4349.4,4349.3,41.06534412]
[1757425250693,15.91618083,4349.4,4349.3,46.16824412]
[1757425250893,15.91618083,4349.4,4349.3,47.80395865]
[1757425251123,15.91618083,4349.4,4349.3,46.16824412]
[1757425251324,15.91618083,4349.4,4349.3,47.80353576]
[1757425252067,15.91618083,4349.4,4349.3,45.70063576]
[1757425252398,15.91618083,4349.4,4349.3,47.80353576]
[1757425252599,15.91618083,4349.4,4349.3,46.65392548]
[1757425253099,15.91618083,4349.4,4349.3,41.01063384]
[1757425253329,15.91618083,4349.4,4349.3,45.47747795]
[1757425253530,15.91618083,4349.4,4349.3,43.37457795]
[1757425253730,15.91618083,4349.4,4349.3,44.25246553]
[1757425253936,15.91618083,4349.4,4349.3,44.70756553]
[1757425254130,15.91618083,4349.4,4349.3,40.24546553]
[1757425254333,15.91618083,4349.4,4349.3,43.46046553]
[1757425254496,15.91618083,4349.4,4349.3,37.51784411]
[1757425254838,15.91618083,4349.4,4349.3,41.52484411]
[1757425255019,18.14768083,4349.4,4349.3,37.51784411]
[1757425255228,18.50208083,4349.4,4349.3,34.058]
[1757425255425,18.50208083,4349.4,4349.3,38.065]
[1757425255602,18.50208083,4349.4,4349.3,41.065]
[1757425256009,18.14688083,4349.4,4349.3,41.065]
[1757425256253,18.14788083,4349.4,4349.3,41.065]
[1757425256453,18.14788083,4349.4,4349.3,41.2948]
[1757425256818,18.14788083,4349.4,4349.3,41.75464411]
[1757425257252,15.91638083,4349.4,4349.3,41.75464411]
[1757425258952,15.91638083,4349.4,4349.3,42.51014411]
[1757425259348,15.91638083,4349.4,4349.3,42.05504411]
[1757425259541,15.91638083,4349.4,4349.3,48.66804411]
[1757425259938,15.91638083,4349.4,4349.3,48.36764411]
[1757425260153,15.91638083,4349.4,4349.3,49.12314411]
[1757425260452,8.11470378,4349.4,4349.3,52.71084782]
[1757425260652,8.11470378,4349.4,4349.3,52.43367795]
[1757425260828,8.11470378,4349.4,4349.3,48.48204411]
[1757425261034,8.11470378,4349.4,4349.3,50.11726008]
[1757425261243,8.11470378,4349.4,4349.3,48.78244411]
[1757425261555,8.11470378,4349.4,4349.3,49.23754411]
[1757425261852,8.11470378,4349.4,4349.3,45.23054411]
[1757425262043,8.11470378,4349.4,4349.3,49.53877795]
[1757425262353,8.11470378,4349.4,4349.3,50.33077795]
[1757425262533,8.11470378,4349.4,4349.3,52.45927795]
[1757425262852,8.11470378,4349.4,4349.3,20.33077795]
[1757425263155,0.04,4349.9,4349.3,20.33077795]
[1757425263156,0.04,4349.9,4349.7,1.48160182]
[1757425263356,0.04,4349.9,4349.7,38.51159191]
[1757425263556,0.04,4349.9,4349.7,41.69343131]
[1757425263958,0.04,4349.9,4349.7,34.89723566]
[1757425264162,0.04,4349.9,4349.7,37.81100182]
[1757425264636,2.1963,4349.8,4349.7,37.81000182]
[1757425264836,0.025,4349.8,4349.7,37.81000182]
[1757425265678,0.025,4349.8,4349.7,41.69243131]
[1757425265840,0.025,4349.8,4349.7,42.05290553]
[1757425266037,0.025,4350.8,4349.8,4.48159125]
[1757425266267,0.025,4350.8,4350.7,0.2298]
[1757425266476,0.025,4350.8,4350.7,46.86006181]
[1757425266658,0.025,4350.8,4350.7,47.16129565]
[1757425266960,0.025,4350.8,4350.7,45.11223384]
[1757425267135,0.0286,4350.8,4350.7,40.92108886]
[1757425267336,2.1963,4350.8,4350.7,44.92708886]
[1757425267540,2.5515,4350.8,4350.7,40.805]
[1757425267731,2.5515,4350.8,4350.7,46.45195535]
[1757425268927,2.1963,4350.8,4350.7,46.45195535]
[1757425269127,2.1963,4350.8,4350.7,44.811]
[1757425269743,0.025,4350.8,4350.7,45.27069614]
[1757425269961,0.025,4350.8,4350.7,45.88352998]
[1757425270357,0.025,4350.8,4350.7,44.811]
[1757425270673,2.1963,4350.8,4350.7,46.86006181]
[1757425270885,0.025,4350.8,4350.7,46.86006181]
[1757425271296,0.025,4350.8,4350.7,46.85906181]
[1757425271493,2.1963,4350.8,4350.7,46.85906181]
[1757425272376,0.025,4350.8,4350.7,46.80569614]
[1757425272555,0.025,4350.8,4350.7,47.15425178]
[1757425272946,0.025,4350.8,4350.7,46.87708191]
[1757425273154,0.025,4350.8,4350.7,46.44468191]
[1757425273342,0.01318683,4350.9,4350.8,3.22984278]
[1757425273548,0.01318683,4350.9,4350.8,39.05686655]
[1757425273780,0.01318683,4350.9,4350.8,37.54644278]
[1757425273984,0.01318683,4350.9,4350.8,38.77084278]
[1757425274171,0.01318683,4350.9,4350.8,40.07870933]
[1757425274682,0.01318683,4350.9,4350.8,37.005]
[1757425274683,2.18448683,4350.9,4350.8,37.005]
[1757425275181,0.01318683,4350.9,4350.8,37.23484278]
[1757425275580,0.01318683,4350.9,4350.8,37.53607662]
[1757425275786,0.01318683,4350.9,4350.8,39.07207662]
[1757425276154,0.025,4351.8,4351.7,1.02179525]
[1757425276384,0.025,4351.8,4351.7,12.61482909]
[1757425276587,0.025,4351.8,4351.7,45.52359527]
[1757425276789,0.025,4351.8,4351.7,43.04082909]
[1757425276987,0.025,4351.8,4351.7,45.09094896]
[1757425277195,0.025,4351.8,4351.7,45.08997548]
[1757425277687,0.025,4351.8,4351.7,43.04082909]
[1757425278191,2.1963,4351.8,4351.7,37.4012]
[1757425278362,2.1963,4351.8,4351.7,41.062]
[1757425278563,2.1963,4351.8,4351.7,42.70096916]
[1757425278766,0.025,4351.8,4351.7,43.10035374]
[1757425278964,0.025,4351.8,4351.7,41.77298458]
[1757425279378,0.025,4351.8,4351.7,43.29861842]
[1757425279893,0.025,4351.8,4351.7,42.86621842]
[1757425280095,0.025,4351.8,4351.7,12.86621842]
[1757425280261,0.025,4351.8,4351.7,13.29861842]
[1757425280457,0.025,4351.8,4351.7,43.29861842]
[1757425280673,0.025,4351.8,4351.7,38.86221842]
[1757425280875,0.025,4351.8,4351.7,42.56498458]
[1757425281075,0.025,4351.8,4351.7,12.56498458]
[1757425281283,0.0242,4351.8,4351.7,12.56498458]
[1757425281597,2.1955,4351.8,4351.7,37.22758933]
[1757425281898,2.5507,4351.8,4351.7,41.061]
[1757425282124,2.1955,4351.8,4351.7,41.29079525]
[1757425282304,2.1919,4351.8,4351.7,41.29079525]
[1757425282466,2.1919,4351.8,4351.7,41.061]
[1757425282662,2.199,4351.8,4351.7,41.061]
[1757425283199,2.5507,4351.8,4351.7,37.057]
[1757425283401,2.5507,4351.8,4351.7,41.061]
[1757425283605,2.5507,4351.8,4351.7,37.057]
[1757425283797,2.5507,4351.8,4351.7,41.061]
[1757425284105,2.199,4351.8,4351.7,41.29079525]
[1757425284279,0.0242,4351.8,4351.7,41.59202909]
[1757425284600,0.0347,4351.8,4351.7,37.057]
[1757425284803,2.2024,4351.8,4351.7,41.28979525]
[1757425285011,2.2024,4351.8,4351.7,41.06]
[1757425285392,2.2024,4351.8,4351.7,41.28979525]
[1757425285393,0.0242,4351.8,4351.7,41.28979525]
[1757425286422,0.0242,4351.8,4351.7,41.51959525]
[1757425286592,0.3155,4351.8,4351.7,41.2898]
[1757425286921,2.4832,4351.8,4351.7,41.2898]
[1757425287108,2.4832,4351.8,4351.7,41.51959525]
[1757425287311,0.0242,4351.8,4351.7,41.51959525]
[1757425287628,0.0242,4351.8,4351.7,41.2898]
[1757425287923,0.3133,4351.8,4351.7,41.2898]
[1757425288081,2.481,4351.8,4351.7,37.2868]
[1757425288286,2.481,4351.8,4351.7,39.1102]
[1757425288287,2.5535,4351.8,4351.7,39.1102]
[1757425288925,2.81285,4351.8,4351.7,39.1092]
[1757425289985,2.81285,4351.8,4351.7,35.1062]
[1757425290190,5.11074971,4351.8,4351.7,1.762]
[1757425290539,5.11074971,4351.8,4351.7,0.0550625]
[1757425290702,5.11074971,4351.8,4351.7,4.0580625]
[1757425290901,5.11074971,4351.8,4350.3,6.61]
[1757425290902,2.29842787,4350.8,4350.3,6.61]
[1757425291101,5.05757066,4350.8,4350.7,11.275]
[1757425291788,5.05757066,4350.8,4350.7,14.275]
[1757425292191,2.75914279,4350.8,4350.7,14.275]
[1757425292521,2.87354279,4350.8,4350.7,14.275]
[1757425292987,2.4546,4350.8,4350.7,44.275]
[1757425293188,2.2056,4351.3,4350.8,3.0]
[1757425293423,0.3587,4351.6,4351.0,3.0]
[1757425293622,2.2056,4351.3,4351.2,3.0]
[1757425293821,2.2056,4351.3,4351.2,37.003]
[1757425293822,2.2092,4351.3,4351.2,37.003]
[1757425294127,2.5644,4351.3,4351.2,7.003]
[1757425294325,2.82084,4351.3,4351.2,7.003]
[1757425294714,2.2092,4351.3,4351.2,7.003]
[1757425295226,2.5644,4351.3,4351.2,7.003]
[1757425295725,2.2092,4351.3,4351.2,37.003]
[1757425296138,0.0242,4351.8,4351.3,3.0]
[1757425296300,0.0242,4351.8,4351.5,3.0]
[1757425296500,0.0242,4351.8,4351.7,3.0]
[1757425296841,0.0242,4351.8,4351.7,37.003]
[1757425297206,2.5886,4351.8,4351.7,3.0]
[1757425297404,2.5886,4351.8,4351.6,1.763]
[1757425297405,2.29795252,4351.7,4351.6,1.763]
[1757425297599,2.65315252,4351.7,4351.6,1.763]
[1757425297824,4.86585252,4351.7,4351.6,5.766]
[1757425298138,5.65785252,4351.7,4351.6,1.763]
[1757425298335,5.65785252,4351.7,4351.6,5.766]
[1757425298634,6.48613374,4351.7,4351.6,5.766]
[1757425299515,5.69413374,4351.7,4351.6,5.766]
[1757425299847,6.48613374,4351.7,4351.6,1.763]
[1757425300018,3.09016376,4351.3,4351.2,1.763]
[1757425300343,5.65456376,4351.3,4351.2,5.766]
[1757425300504,6.67962648,4351.3,4351.2,5.766]
[1757425300839,6.67962648,4351.3,4351.2,1.763]
[1757425301048,6.67962648,4351.3,4351.2,5.766]
[1757425302543,3.23776272,4351.3,4351.2,5.766]
[1757425302750,4.51086376,4351.3,4351.2,5.766]
[1757425302920,5.74086376,4351.3,4351.2,5.766]
[1757425303117,3.4427,4351.3,4351.2,8.766]
[1757425303321,1.23,4351.3,4351.2,8.766]
[1757425303670,1.23,4351.3,4351.2,42.21173384]
[1757425304557,2.46,4351.3,4351.2,42.21173384]
[1757425304855,2.46,4351.3,4351.2,43.59066379]
[1757425305822,3.69,4351.3,4351.2,43.59066379]
[1757425306233,3.69,4351.3,4351.2,43.75880912]
[1757425306434,3.69,4351.3,4351.2,44.82797899]
[1757425306659,0.71585491,4351.3,4351.2,47.11668624]
[1757425307159,0.71585491,4351.3,4351.2,45.06753985]
[1757425307357,1.94585491,4351.3,4351.2,40.27253985]
[1757425307558,1.94505491,4351.3,4351.2,44.79036998]
[1757425308040,1.94505491,4351.3,4351.2,44.55080912]
[1757425308779,3.17505491,4351.3,4351.2,44.55080912]
[1757425309373,3.17505491,4351.3,4351.2,44.82797899]
[1757425309569,3.17505491,4351.3,4351.2,46.87712538]
[1757425310282,4.40505491,4351.3,4351.2,45.51684315]
[1757425310783,4.40505491,4351.3,4351.2,45.23867328]
[1757425310956,4.40505491,4351.3,4351.2,44.44667328]
[1757425311156,4.40505491,4351.3,4351.2,40.45657528]
[1757425311681,5.63505491,4351.3,4351.2,44.24857528]
[1757425312057,5.63505491,4351.3,4351.2,40.24657528]
[1757425312264,5.63505491,4351.3,4351.2,44.24857528]
[1757425312463,5.63505491,4351.3,4351.2,45.46909575]
[1757425312686,5.63505491,4351.3,4351.2,45.74626562]
[1757425312884,6.86505491,4351.3,4351.2,45.74626562]
[1757425314076,8.09505491,4351.3,4351.2,45.74626562]
[1757425314387,0.64930687,4351.3,4351.2,47.68101201]
[1757425314575,0.0242,4351.8,4351.7,6.08995252]
[1757425314775,0.0242,4351.8,4351.7,48.30958636]
[1757425314979,0.0242,4351.8,4351.7,53.3835393]
[1757425315351,1.2542,4351.8,4351.7,53.3835393]
[1757425315856,1.2542,4351.8,4351.7,51.33968636]
[1757425316608,1.2542,4351.8,4351.7,52.25824298]
[1757425316805,2.4842,4351.8,4351.7,47.95600914]
[1757425317100,2.4842,4351.8,4351.7,47.51545252]
[1757425317308,2.4842,4351.8,4351.7,47.74525252]
[1757425317471,2.4842,4351.8,4351.7,47.51545252]
[1757425317652,2.4842,4351.8,4351.7,45.2175]
[1757425317858,2.4842,4351.8,4351.7,47.51545252]
[1757425318471,3.7142,4351.8,4351.7,43.51445252]
[1757425319057,3.7142,4351.8,4351.7,39.55163456]
[1757425319262,3.7142,4351.8,4351.7,44.21635252]
[1757425319462,3.7142,4351.8,4351.7,47.21635252]
[1757425319657,4.9442,4351.8,4351.7,47.21635252]
[1757425320595,4.9442,4351.8,4351.7,50.54768636]
[1757425320796,4.9442,4351.8,4351.7,52.18192092]
[1757425321086,6.1742,4351.8,4351.7,41.21863384]
[1757425321289,6.1778,4351.8,4351.7,40.9174]
[1757425321487,8.3834,4351.8,4351.7,44.9174]
[1757425321691,6.1742,4351.8,4351.7,44.9174]
[1757425322091,6.1742,4351.8,4351.7,47.21535252]
[1757425322293,7.4042,4351.8,4351.7,44.9174]
[1757425322794,7.4042,4351.8,4351.7,17.21535252]
[1757425323094,7.4042,4351.8,4351.7,14.9174]
[1757425323303,7.4042,4351.8,4351.7,47.21535252]
[1757425323593,7.4042,4351.8,4351.7,47.51658636]
[1757425323793,8.6342,4351.8,4351.7,47.51658636]
[1757425324373,8.6342,4351.8,4351.7,40.9174]
[1757425324698,12.15062,4351.8,4351.7,37.9174]
[1757425324859,12.15062,4351.8,4351.1,7.805]
[1757425325170,2.29805814,4351.5,4351.3,3.0]
[1757425325381,2.29805814,4351.5,4351.4,7.0]
[1757425325561,2.29801683,4351.6,4351.4,4.0]
[1757425325761,1.61056368,4351.5,4351.4,4.0]
[1757425325998,0.3076,4351.5,4351.4,4.0]
[1757425326199,2.649,4351.5,4351.4,4.0]
[1757425326420,2.5948,4351.5,4351.4,34.0]
[1757425326584,2.649,4351.5,4351.4,37.0]
[1757425326790,3.879,4351.5,4351.4,7.0]
[1757425327410,3.879,4351.5,4351.4,17.0]
[1757425327595,3.8248,4351.5,4351.4,7.0]
[1757425327795,3.8248,4351.5,4351.4,17.0]
[1757425328114,1.23,4351.5,4351.4,37.0]
[1757425328314,2.46,4351.5,4351.4,37.0]
[1757425328711,5.109,4351.5,4351.4,3.0]
[1757425328913,6.60632,4351.5,4351.4,3.0]
[1757425329114,6.60632,4351.5,4351.4,7.0]
[1757425329609,7.83632,4351.5,4351.4,7.0]
[1757425330111,7.83632,4351.5,4351.4,3.0]
[1757425330316,7.83632,4351.5,4351.4,7.0]
[1757425330811,7.83632,4351.5,4351.4,3.0]
[1757425331020,9.01212,4351.5,4351.4,7.0]
[1757425331221,4.92,4351.5,4351.4,37.0]
[1757425331524,4.92,4351.5,4351.4,42.19964479]
[1757425331923,4.92,4351.5,4351.4,44.81834479]
[1757425332081,4.92,4351.5,4351.4,35.59623384]
[1757425332282,6.15,4351.5,4351.4,39.59623384]
[1757425332798,6.15,4351.5,4351.4,39.90153384]
[1757425333006,6.15,4351.5,4351.4,35.59623384]
[1757425333202,6.15,4351.5,4351.4,41.89841095]
[1757425333532,8.4408,4351.5,4351.4,35.295]
[1757425333696,7.3792,4351.5,4351.4,39.295]
[1757425333895,7.3792,4351.5,4351.4,35.295]
[1757425334095,9.67,4351.5,4351.4,37.0]
[1757425334303,12.01414,4351.5,4351.4,3.0]
[1757425334534,11.65894,4351.5,4351.4,7.0]
[1757425334758,7.3828,4351.5,4351.4,17.0]
[1757425334932,8.6092,4351.5,4351.4,7.1144]
[1757425335237,8.6092,4351.5,4351.4,37.1144]
[1757425335412,8.6092,4351.5,4351.4,40.46554479]
[1757425335935,8.6092,4351.5,4351.4,40.16431095]
[1757425336435,9.8392,4351.5,4351.4,40.16431095]
[1757425336647,9.8392,4351.5,4351.4,37.1144]
[1757425337216,9.8392,4351.5,4351.4,39.41251095]
[1757425337453,9.8392,4351.5,4351.4,37.1144]
[1757425337652,9.8392,4351.5,4351.4,37.4187]
[1757425337947,11.0692,4351.5,4351.4,40.16331095]
[1757425338113,11.0692,4351.5,4351.4,43.14371466]
[1757425339117,8.0446003,4351.5,4351.4,43.93571466]
[1757425339448,1e-08,4351.8,4351.7,3.31975252]
[1757425339755,1e-08,4351.8,4351.7,44.19809661]
[1757425339932,1e-08,4351.8,4351.7,44.17511709]
[1757425340130,1e-08,4351.8,4351.7,43.89794722]
[1757425340523,1.23000001,4351.8,4351.7,43.89794722]
[1757425341024,1e-08,4351.8,4351.7,43.89794722]
[1757425341228,1e-08,4351.9,4351.8,6.55926057]
[1757425341444,1e-08,4351.9,4351.8,41.82056428]
[1757425341637,1e-08,4351.9,4351.8,42.12586428]
[1757425342049,1.23000001,4351.9,4351.8,42.12586428]
[1757425342514,1.23000001,4351.9,4351.8,45.60713355]
[1757425343453,2.46000001,4351.9,4351.8,45.60713355]
[1757425343843,2.46000001,4351.9,4351.8,41.60913355]
[1757425344024,1e-08,4351.9,4351.8,45.60713355]
[1757425344225,1e-08,4351.9,4351.8,45.88430342]
[1757425344849,1.23000001,4351.9,4351.8,38.19843355]
[1757425345034,1.23000001,4351.9,4351.8,45.60713355]
[1757425345834,1e-08,4351.9,4351.8,45.88430342]
[1757425346085,1e-08,4351.9,4351.8,46.11410342]
[1757425346416,0.025,4352.8,4352.7,6.08942458]
[1757425346554,0.025,4352.8,4352.7,53.09302786]
[1757425346749,0.025,4352.8,4352.7,56.29419773]
[1757425346950,1e-08,4352.9,4352.8,37.20417313]
[1757425347154,1e-08,4352.9,4352.8,43.29952931]
[1757425347408,1e-08,4352.9,4352.8,39.82157551]
[1757425347581,1.23000001,4352.9,4352.8,43.58877551]
[1757425347782,1.23000001,4352.9,4352.8,40.66477551]
[1757425347981,1.23000001,4352.9,4352.8,43.17929154]
[1757425348302,1.23000001,4352.9,4352.8,41.13940564]
[1757425348461,1.23000001,4352.9,4352.8,45.35149154]
[1757425348663,1.23000001,4352.9,4352.8,41.35449154]
[1757425348902,1.23000001,4352.9,4352.8,36.0893718]
[1757425349208,2.46000001,4352.9,4352.8,40.0863718]
[1757425350235,2.46000001,4352.9,4352.8,39.2943718]
[1757425350392,3.69000001,4352.9,4352.8,39.2943718]
[1757425350830,3.69000001,4352.9,4352.8,33.997]
[1757425351200,3.69000001,4352.9,4352.8,39.2943718]
[1757425351407,3.69000001,4352.9,4352.8,39.5241718]
[1757425351631,3.69000001,4352.9,4352.8,35.5271718]
[1757425351795,4.92000001,4352.9,4352.8,39.5231718]
[1757425352363,4.92000001,4352.9,4352.8,37.2258]
[1757425352632,7.10250001,4352.9,4352.8,37.2258]
[1757425352836,4.92360001,4352.9,4352.8,39.5231718]
[1757425353189,6.15360001,4352.9,4352.8,7.2258]
[1757425353522,6.15360001,4352.9,4352.8,39.5231718]
[1757425353887,6.15000001,4352.9,4352.8,39.5231718]
[1757425354597,6.15000001,4352.9,4352.8,41.35500564]
[1757425354598,7.38000001,4352.9,4352.8,41.35500564]
[1757425354940,7.38000001,4352.9,4352.8,44.11447551]
[1757425355288,7.38000001,4352.9,4352.8,41.74657551]
[1757425355629,7.38000001,4352.9,4352.8,44.11447551]
[1757425355993,8.61000001,4352.9,4352.8,35.6415718]
[1757425356219,8.61000001,4352.9,4352.8,41.26736624]
[1757425356402,8.61000001,4352.9,4352.8,39.4077718]
[1757425356403,8.61360001,4352.9,4352.8,39.4077718]
[1757425356709,8.61000001,4352.9,4352.8,39.6375718]
[1757425356918,8.61360001,4352.9,4352.8,35.4117718]
[1757425357230,10.79250001,4352.9,4352.8,30.1144]
[1757425357441,12.37770001,4352.9,4352.8,37.1094]
[1757425357847,12.37770001,4352.9,4352.8,39.4067718]
[1757425358040,9.84000001,4352.9,4352.8,39.4067718]
[1757425358563,9.84000001,4352.9,4352.8,39.6365718]
[1757425358893,11.07360001,4352.9,4352.8,33.1144]
[1757425359090,13.25250001,4352.9,4352.8,33.1144]
[1757425359325,13.25250001,4352.9,4352.8,37.1094]
[1757425359528,13.60770001,4352.9,4352.8,37.1094]
[1757425359800,11.06920001,4352.9,4352.8,39.4067718]
[1757425360242,14.77320001,4352.9,4352.8,33.1144]
[1757425360443,16.31712001,4352.9,4352.8,30.1144]
[1757425360597,16.31712001,4352.9,4352.8,33.1144]
[1757425361097,16.31712001,4352.9,4352.7,1.762]
[1757425361260,2.3639718,4352.8,4352.7,1.762]
[1757425361457,2.4783718,4352.8,4352.7,5.757]
[1757425361748,7.05269018,4352.8,4352.7,8.757]
[1757425361905,7.05269018,4352.8,4352.7,4.762]
[1757425362104,7.05269018,4352.8,4352.7,8.757]
[1757425362301,4.75531838,4352.8,4352.7,8.757]
[1757425362839,7.05269018,4352.8,4352.7,4.762]
[1757425363045,8.28269018,4352.8,4352.7,8.757]
[1757425363531,5.87091838,4352.8,4352.7,8.757]
[1757425364204,4.9983,4352.8,4352.7,8.757]
[1757425365044,7.2956718,4352.8,4352.7,8.757]
[1757425365722,8.5256718,4352.8,4352.7,8.757]
[1757425366539,8.5256718,4352.8,4352.7,4.762]
[1757425366741,8.5256718,4352.8,4352.7,8.757]
[1757425366906,12.81557977,4352.8,4352.7,1.762]
[1757425367326,12.81557977,4352.8,4352.7,5.757]
[1757425367942,2.29784691,4351.9,4351.8,0.025]
[1757425368147,3.08984691,4351.9,4351.8,1.787]
[1757425368458,5.63034691,4351.9,4351.8,1.787]
[1757425368764,7.65315887,4351.9,4351.8,1.787]
[1757425369112,7.65315887,4351.9,4351.8,1e-08]
[1757425369311,3.08989971,4351.8,4351.3,0.002]
[1757425369744,3.38071095,4351.4,4351.3,0.002]
[1757425370129,5.63061095,4351.4,4351.3,0.002]
[1757425370353,6.42347561,4351.4,4351.3,0.002]
[1757425370856,3.20456376,4351.3,4351.1,1.804]
[1757425371016,3.09021658,4351.2,4351.1,1.804]
[1757425371212,3.09021658,4351.2,4351.1,0.042]
[1757425371213,2.5406,4351.2,4351.1,0.042]
[1757425371461,5.63081658,4351.2,4351.1,0.042]